bitfinex/quotes_SOLUSD_20260223
["timestamp","ask_amount","ask_price","bid_price","bid_amount"]
[1771871323243,31.79524014,78.629,78.6,5.48083687]
[1771871324145,1.4781774,78.628,78.591,1.52195565]
[1771871324441,1.4781774,78.628,78.592,1.52195565]
[1771871325946,1.4781774,78.619,78.571,31.81800048]
[1771871326137,1.4781774,78.607,78.58,12.72588444]
[1771871326742,1.4781774,78.607,78.579,1.52195565]
[1771871327244,44.5247303,78.608,78.57,5.48129005]
[1771871327245,5.48129005,78.6,78.57,5.48129005]
[1771871327451,5.48129005,78.6,78.561,14.25091785]
[1771871327452,1.4781774,78.599,78.561,14.25091785]
[1771871327948,1.4781774,78.599,78.562,1.56918887]
[1771871328339,1.56455051,78.597,78.562,1.56918887]
[1771871328533,1.56455051,78.597,78.564,1.56918887]
[1771871329645,1.56455051,78.597,78.57,5.48129005]
[1771871330747,1.56455051,78.595,78.57,7.05047892]
[1771871330957,1.56455051,78.595,78.571,1.56918887]
[1771871334053,1.56455051,78.593,78.571,1.56918887]
[1771871336763,1.56455051,78.593,78.56,5.48129005]
[1771871336764,1.56455051,78.591,78.565,1.56918887]
[1771871341855,14.28881568,78.59,78.567,1.56918887]
[1771871342062,1.56455051,78.589,78.567,1.56918887]
[1771871342364,12.72426517,78.59,78.56,5.48129005]
[1771871342561,44.5349281,78.59,78.561,1.56918887]
[1771871342873,12.72426517,78.59,78.561,1.56918887]
[1771871343064,31.83339456,78.729,78.57,5.48129005]
[1771871343284,31.83339456,78.729,78.536,3.69383402]
[1771871343285,1.56455051,78.605,78.581,1.56918887]
[1771871346262,1.56455051,78.611,78.583,1.56918887]
[1771871348746,1.56455051,78.609,78.585,1.56918887]
[1771871350171,1.56455051,78.609,78.581,1.56918887]
[1771871351165,5.48129005,78.62,78.577,12.72621499]
[1771871351166,14.28509207,78.614,78.591,1.56918887]
[1771871351566,1.56455051,78.614,78.591,1.56918887]
[1771871352274,1.56455051,78.614,78.583,1.56918887]
[1771871352576,1.56455051,78.636,78.601,1.56918887]
[1771871352755,1.56455051,78.63,78.601,1.56918887]
[1771871353262,1.56455051,78.628,78.601,1.56918887]
[1771871353572,1.56455051,78.628,78.597,12.72297311]
[1771871353867,1.56455051,78.628,78.594,1.56918887]
[1771871354059,1.56455051,78.628,78.595,12.72345569]
[1771871354380,1.56455051,78.628,78.582,31.8139014]
[1771871354381,1.56455051,78.619,78.586,1.56918887]
[1771871355162,5.48129005,78.62,78.586,1.56918887]
[1771871355163,1.56455051,78.617,78.587,12.72475091]
[1771871355361,1.56455051,78.617,78.587,14.29393978]
[1771871356571,1.56455051,78.615,78.588,1.56918887]
[1771871358173,1.56472867,78.613,78.588,1.56918887]
[1771871358375,1.56472867,78.599,78.571,1.49994598]
[1771871362864,0.28432314,78.608,78.571,1.49994598]
[1771871362865,1.45399238,78.597,78.571,1.49994598]
[1771871368067,1.45399238,78.595,78.565,1.56743407]
[1771871369789,1.45399238,78.595,78.571,1.56743407]
[1771871372789,5.48129005,78.61,78.571,1.56743407]
[1771871372790,1.45399238,78.6,78.571,1.56743407]
[1771871375384,1.45399238,78.598,78.571,1.56743407]
[1771871375896,5.48129005,78.61,78.581,1.56743407]
[1771871375897,1.45399238,78.602,78.581,1.56743407]
[1771871379479,1.45399238,78.6,78.581,1.56743407]
[1771871381695,12.72280817,78.599,78.571,12.72719101]
[1771871382000,12.72280817,78.599,78.556,1.56743407]
[1771871382001,1.45399238,78.589,78.556,1.56743407]
[1771871382484,1.45399238,78.589,78.56,5.48129005]
[1771871382692,1.45399238,78.589,78.561,1.56743407]
[1771871383096,1.45399238,78.596,78.561,1.56743407]
[1771871383398,1.45399238,78.596,78.571,1.56743407]
[1771871383789,1.45399238,78.621,78.591,1.56743407]
[1771871384102,1.45399238,78.62,78.601,1.56743407]
[1771871384283,12.71909126,78.622,78.601,1.56743407]
[1771871385498,1.45399238,78.624,78.601,1.56743407]
[1771871385694,1.45399238,78.62,78.578,1.56743407]
[1771871385896,1.45399238,78.619,78.59,5.48129005]
[1771871386094,1.45399238,78.609,78.581,1.56743407]
[1771871388306,1.52303261,78.607,78.572,1.51228971]
[1771871388508,1.52303261,78.607,78.581,1.51228971]
[1771871389498,1.52303261,78.607,78.59,5.47953688]
[1771871389702,12.72021942,78.615,78.591,1.51228971]
[1771871389904,14.24325203,78.615,78.591,1.51228971]
[1771871393210,5.57953688,78.64,78.601,1.51228971]
[1771871393510,5.57953688,78.64,78.592,12.72394136]
[1771871393511,1.52303261,78.635,78.611,1.51228971]
[1771871393891,1.52303261,78.629,78.604,1.51228971]
[1771871395512,1.52303261,78.629,78.605,12.72183703]
[1771871396605,1.52303261,78.629,78.61,5.47953688]
[1771871396811,5.57953688,78.64,78.611,1.51228971]
[1771871396812,1.52303261,78.638,78.611,1.51228971]
[1771871397306,1.52303261,78.638,78.62,5.47953688]
[1771871397512,1.52303261,78.638,78.621,1.51228971]
[1771871398224,0.1,78.64,78.621,1.51228971]
[1771871398389,1.52303261,78.651,78.631,1.51228971]
[1771871399010,1.52303261,78.666,78.641,1.51228971]
[1771871400441,12.83851139,78.677,78.651,1.51228971]
[1771871400622,0.12821,78.677,78.668,1.51228971]
[1771871400912,1.52303261,78.676,78.64,5.47953688]
[1771871401098,1.52303261,78.669,78.633,1.51228971]
[1771871401500,1.52303261,78.669,78.64,5.47953688]
[1771871401710,1.52303261,78.669,78.641,1.51228971]
[1771871401912,1.52303261,78.669,78.63,5.47953688]
[1771871402217,1.52303261,78.659,78.62,6.99182659]
[1771871402419,1.52303261,78.659,78.621,1.51228971]
[1771871402720,1.80735575,78.65,78.621,1.51228971]
[1771871403097,1.52303261,78.639,78.611,14.23299568]
[1771871403310,1.52303261,78.629,78.598,1.51228971]
[1771871403508,1.52303261,78.629,78.601,1.51228971]
[1771871403701,44.50038778,78.651,78.62,5.47953688]
[1771871403702,1.52303261,78.649,78.62,5.47953688]
[1771871404014,1.52303261,78.649,78.61,5.47953688]
[1771871404191,1.52303261,78.639,78.61,5.47953688]
[1771871404592,1.52303261,78.639,78.601,1.51228971]
[1771871404803,1.52303261,78.637,78.602,12.72232258]
[1771871405218,1.52303261,78.637,78.603,1.51228971]
[1771871405917,1.52303261,78.637,78.61,5.47953688]
[1771871406905,1.52303261,78.635,78.606,12.72160394]
[1771871407207,1.52303261,78.629,78.603,1.51228971]
[1771871408119,1.52303261,78.629,78.6,5.47953688]
[1771871408718,0.28432314,78.622,78.59,5.47953688]
[1771871408922,1.52303261,78.617,78.59,5.47953688]
[1771871409114,1.52303261,78.617,78.591,1.51228971]
[1771871409317,1.52303261,78.617,78.592,1.51228971]
[1771871411099,31.79697868,78.624,78.592,1.51228971]
[1771871411100,1.52303261,78.615,78.592,1.51228971]
[1771871411317,1.52303261,78.615,78.59,5.47953688]
[1771871411516,1.52303261,78.619,78.592,1.51228971]
[1771871412403,1.52303261,78.619,78.585,1.51228971]
[1771871412715,1.52303261,78.619,78.59,5.47953688]
[1771871413116,1.52303261,78.619,78.59,6.99182659]
[1771871413822,1.52303261,78.617,78.591,1.51228971]
[1771871414405,1.52303261,78.617,78.59,5.47953688]
[1771871414606,1.52303261,78.617,78.585,12.72507475]
[1771871415443,1.52303261,78.607,78.584,1.51228971]
[1771871415610,1.52303261,78.607,78.564,31.82104818]
[1771871415611,1.52303261,78.607,78.578,1.51228971]
[1771871415805,1.52303261,78.605,78.572,12.72705588]
[1771871416021,1.52303261,78.618,78.591,1.51228971]
[1771871418304,1.56637985,78.616,78.58,6.94389468]
[1771871418527,1.85070299,78.599,78.56,5.47953688]
[1771871418706,1.56637985,78.608,78.571,1.4643578]
[1771871418913,1.56637985,78.616,78.59,5.47953688]
[1771871419107,1.56637985,78.616,78.59,6.94389468]
[1771871419926,5.47953688,78.63,78.6,5.47953688]
[1771871420133,1.5498943,78.626,78.601,1.4643578]
[1771871420432,1.5498943,78.626,78.56,10.84039876]
[1771871420433,1.5498943,78.624,78.594,1.51866176]
[1771871420614,1.5498943,78.624,78.6,5.47953688]
[1771871421714,1.5498943,78.624,78.6,18.20209632]
[1771871421920,1.5498943,78.633,78.611,1.51866176]
[1771871422116,1.5498943,78.633,78.6,44.52917521]
[1771871422117,1.5498943,78.633,78.603,1.51866176]
[1771871423428,14.26733755,78.633,78.61,5.47953688]
[1771871423632,12.71648059,78.639,78.611,1.51866176]
[1771871423833,1.5498943,78.642,78.62,5.47953688]
[1771871424013,12.71601327,78.641,78.62,5.47953688]
[1771871424209,1.5498943,78.642,78.621,1.51866176]
[1771871424531,1.5498943,78.664,78.631,1.51866176]
[1771871424711,1.5498943,78.664,78.64,5.47953688]
[1771871424918,1.5498943,78.673,78.641,1.51866176]
[1771871425114,1.5498943,78.669,78.64,5.47953688]
[1771871425520,1.5498943,78.667,78.64,5.47953688]
[1771871427011,1.5498943,78.667,78.634,1.51866176]
[1771871427216,1.5498943,78.667,78.64,5.47953688]
[1771871427413,5.47953688,78.65,78.61,5.47953688]
[1771871427730,50.84320265,78.674,78.606,1.51866176]
[1771871427731,0.28432314,78.639,78.606,1.51866176]
[1771871427934,1.83421744,78.629,78.6,1.51866176]
[1771871428118,1.83421744,78.629,78.592,1.51866176]
[1771871429322,1.83421744,78.629,78.6,6.99819864]
[1771871430122,1.5498943,78.627,78.6,1.51866176]
[1771871430820,31.79349994,78.633,78.6,1.51866176]
[1771871430821,0.28432314,78.64,78.611,1.51866176]
[1771871431024,13.00049811,78.64,78.611,1.51866176]
[1771871431340,13.00049811,78.64,78.617,1.51866176]
[1771871431518,14.40823084,78.64,78.617,1.51866176]
[1771871432025,12.85865995,78.638,78.617,1.51866176]
[1771871432226,14.40855425,78.638,78.617,1.51866176]
[1771871433234,14.26639268,78.638,78.62,5.47953688]
[1771871433438,1.5498943,78.637,78.617,1.51866176]
[1771871434422,1.5498943,78.66,78.631,1.51866176]
[1771871434621,1.5498943,78.655,78.631,1.51866176]
[1771871434840,1.5498943,78.655,78.621,1.51866176]
[1771871435040,1.5498943,78.637,78.607,1.51866176]
[1771871435828,1.5498943,78.637,78.608,12.72135151]
[1771871437050,1.5498943,78.635,78.604,12.72196688]
[1771871437967,1.5498943,78.635,78.605,1.51866176]
[1771871439141,5.47953688,78.63,78.6,5.47953688]
[1771871439445,1.5498943,78.627,78.598,1.51866176]
[1771871439823,1.5498943,78.627,78.588,31.81109409]
[1771871439824,1.5498943,78.619,78.592,12.72381821]
[1771871440036,5.47953688,78.62,78.591,1.51866176]
[1771871440037,1.5498943,78.617,78.591,1.51866176]
[1771871440322,44.51000838,78.634,78.593,1.51866176]
[1771871440323,1.5498943,78.626,78.593,1.51866176]
[1771871441245,12.71860095,78.625,78.6,6.99819864]
[1771871441445,14.26849525,78.625,78.6,6.99819864]
[1771871442044,1.5498943,78.624,78.6,6.99819864]
[1771871443351,5.47953688,78.63,78.592,1.51866176]
[1771871443352,1.5498943,78.618,78.592,1.51866176]
[1771871445333,12.71989518,78.617,78.592,1.51866176]
[1771871445732,1.5498943,78.616,78.592,1.51866176]
[1771871446932,1.5498943,78.616,78.594,1.51866176]
[1771871447654,1.83421744,78.622,78.594,1.51866176]
[1771871449952,1.85909689,78.62,78.594,1.51866176]
[1771871452163,1.85909689,78.618,78.588,1.4781628]
[1771871452367,1.85909689,78.618,78.589,12.72442708]
[1771871452578,1.85909689,78.618,78.59,1.4781628]
[1771871452868,1.57477375,78.638,78.601,1.4781628]
[1771871453541,5.47811811,78.63,78.601,1.4781628]
[1771871453742,1.57477375,78.629,78.601,1.4781628]
[1771871454651,1.57477375,78.627,78.602,14.20048538]
[1771871454853,1.57477375,78.627,78.602,1.4781628]
[1771871456566,63.56880824,78.655,78.6,12.72249001]
[1771871456567,12.71229533,78.664,78.62,5.47811811]
[1771871456867,1.57477375,78.649,78.613,1.4781628]
[1771871457061,1.57477375,78.639,78.6,5.47811811]
[1771871457259,1.57477375,78.631,78.601,1.4781628]
[1771871458074,1.57477375,78.631,78.601,14.20063892]
[1771871458249,1.57477375,78.631,78.602,1.4781628]
[1771871458572,12.71779219,78.63,78.604,1.4781628]
[1771871458768,1.57477375,78.629,78.604,1.4781628]
[1771871459853,1.57477375,78.629,78.604,1.3931628]
[1771871460969,1.57477375,78.621,78.539,50.92962858]
[1771871461275,44.51340488,78.628,78.539,50.92962858]
[1771871461276,1.57477375,78.619,78.58,5.47811811]
[1771871461850,1.57477375,78.619,78.581,1.4781628]
[1771871462978,44.51340488,78.628,78.58,5.47811811]
[1771871462979,1.57477375,78.609,78.58,5.47811811]
[1771871463170,0.28432314,78.608,78.57,1.4781628]
[1771871463470,1.57477375,78.599,78.57,1.4781628]
[1771871463655,1.57477375,78.599,78.57,18.20559414]
[1771871463855,1.57477375,78.599,78.57,19.68375694]
[1771871464055,1.57477375,78.599,78.571,1.4781628]
[1771871465173,1.57477375,78.597,78.571,1.4781628]
[1771871465757,1.57477375,78.597,78.565,1.4781628]
[1771871467352,12.7232938,78.596,78.566,12.72815212]
[1771871467557,12.7232938,78.596,78.551,1.4781628]
[1771871467558,1.57477375,78.589,78.551,1.4781628]
[1771871467871,44.53152831,78.596,78.545,12.73155515]
[1771871467872,1.57477375,78.595,78.571,1.4781628]
[1771871469565,1.57477375,78.593,78.571,1.4781628]
[1771871470575,3.69383402,78.616,78.529,5.36086188]
[1771871470576,5.47811811,78.62,78.581,1.4781628]
[1771871470777,1.57477375,78.621,78.591,1.4781628]
[1771871471075,1.57477375,78.619,78.59,5.47811811]
[1771871471278,1.57477375,78.611,78.584,1.4781628]
[1771871472498,1.57477375,78.609,78.584,1.4781628]
[1771871473379,31.79771565,78.622,78.591,1.4781628]
[1771871473380,1.57477375,78.622,78.591,1.4781628]
[1771871473585,56.20617006,78.67,78.585,1.4781628]
[1771871473586,1.57477375,78.619,78.585,1.4781628]
[1771871474082,1.57477375,78.619,78.59,5.47811811]
[1771871474288,1.57477375,78.619,78.585,1.4781628]
[1771871475087,1.57477375,78.617,78.591,1.4781628]
[1771871475977,1.57477375,78.617,78.586,14.20307563]
[1771871476175,1.57477375,78.617,78.587,1.4781628]
[1771871476374,1.57477375,78.617,78.551,50.92177254]
[1771871476375,1.57477375,78.609,78.578,1.4781628]
[1771871477069,1.57477375,78.607,78.578,14.20436349]
[1771871477879,1.57477375,78.607,78.578,12.72620069]
[1771871478459,1.57477375,78.607,78.574,1.42439956]
[1771871480794,1.82655411,78.613,78.591,1.51100795]
[1771871481980,14.26192407,78.619,78.591,1.51100795]
[1771871482269,1.54223097,78.618,78.591,1.51100795]
[1771871483585,5.47811811,78.63,78.577,1.51100795]
[1771871483586,44.80395629,78.617,78.577,1.51100795]
[1771871483792,44.80395629,78.617,78.562,1.51100795]
[1771871483793,1.54223097,78.599,78.562,1.51100795]
[1771871484090,1.54223097,78.589,78.555,1.51100795]
[1771871484969,3.69383402,78.616,78.548,1.51100795]
[1771871484970,1.54223097,78.579,78.548,1.51100795]
[1771871485163,5.47811811,78.6,78.534,1.51100795]
[1771871485164,1.54223097,78.569,78.534,1.51100795]
[1771871485580,1.54223097,78.567,78.534,1.51100795]
[1771871485764,1.54223097,78.593,78.551,1.51100795]
[1771871485968,12.72005698,78.616,78.58,5.47811811]
[1771871486175,1.54223097,78.616,78.59,5.47811811]
[1771871486969,1.54223097,78.609,78.581,1.51100795]
[1771871487170,1.54223097,78.609,78.58,5.47811811]
[1771871487369,1.54223097,78.609,78.574,1.51100795]
[1771871487676,1.54223097,78.607,78.574,1.51100795]
[1771871488187,1.54223097,78.607,78.567,12.72786553]
[1771871488491,1.54223097,78.607,78.571,1.51100795]
[1771871489086,44.5247303,78.608,78.567,12.72786553]
[1771871489087,0.28432314,78.603,78.58,5.47811811]
[1771871489387,50.8711834,78.63,78.591,1.51100795]
[1771871489388,14.26275123,78.614,78.591,1.51100795]
[1771871489689,1.54223097,78.632,78.603,1.51100795]
[1771871489868,1.54223097,78.642,78.62,5.47811811]
[1771871490073,1.54223097,78.649,78.63,5.47811811]
[1771871490274,1.54223097,78.639,78.61,5.47811811]
[1771871490785,1.54223097,78.639,78.607,1.51100795]
[1771871491083,5.47811811,78.63,78.594,14.23461217]
[1771871491293,1.54223097,78.629,78.594,14.23461217]
[1771871491475,1.54223097,78.629,78.595,1.51100795]
[1771871491871,1.54223097,78.627,78.6,5.47811811]
[1771871492092,1.54223097,78.627,78.601,1.51100795]
[1771871493474,12.71843919,78.626,78.601,1.51100795]
[1771871494092,12.71666009,78.637,78.602,12.72232258]
[1771871494393,12.71666009,78.637,78.6,5.47811811]
[1771871494394,0.28432314,78.633,78.603,1.51100795]
[1771871494601,1.82655411,78.633,78.603,1.51100795]
[1771871496300,1.54223097,78.631,78.603,1.51100795]
[1771871497300,1.54223097,78.619,78.59,5.47811811]
[1771871497493,1.54223097,78.619,78.589,1.51100795]
[1771871499082,1.54223097,78.617,78.582,1.51100795]
[1771871501107,1.54223097,78.613,78.582,1.51100795]
[1771871501292,1.54223097,78.609,78.582,1.51100795]
[1771871503595,1.54223097,78.607,78.582,1.51100795]
[1771871504094,12.72135151,78.608,78.582,1.51100795]
[1771871504606,1.54223097,78.607,78.575,1.51100795]
[1771871505404,1.54223097,78.607,78.576,1.51100795]
[1771871505606,1.54223097,78.605,78.576,1.51100795]
[1771871506409,1.54223097,78.605,78.581,1.51100795]
[1771871507311,12.72167519,78.606,78.581,1.51100795]
[1771871507499,1.54223097,78.605,78.581,1.51100795]
[1771871508793,12.72199888,78.604,78.581,1.51100795]
[1771871510115,12.72118968,78.609,78.583,1.46958108]
[1771871510309,14.22886085,78.624,78.591,1.46958108]
[1771871510617,14.22886085,78.624,78.601,1.46958108]
[1771871510618,12.71876271,78.624,78.601,1.46958108]
[1771871510794,1.51009814,78.623,78.594,1.46958108]
[1771871511305,12.71876271,78.624,78.594,1.46958108]
[1771871511503,12.71876271,78.624,78.601,1.46958108]
[1771871512200,0.28432314,78.634,78.601,1.46958108]
[1771871512506,1.51009814,78.631,78.601,1.46958108]
[1771871513495,5.47799967,78.64,78.6,5.47799967]
[1771871513496,12.7155282,78.644,78.621,1.46958108]
[1771871513696,50.84015435,78.678,78.602,12.72232258]
[1771871513697,1.51009814,78.666,78.631,1.46958108]
[1771871513998,1.51009814,78.664,78.631,1.46958108]
[1771871514309,1.51009814,78.659,78.62,5.47799967]
[1771871514618,1.51009814,78.649,78.62,5.47799967]
[1771871514818,1.51009814,78.649,78.618,1.46958108]
[1771871515497,1.51009814,78.647,78.618,1.46958108]
[1771871515696,1.51009814,78.647,78.619,12.7195716]
[1771871516001,1.51009814,78.647,78.62,1.46958108]
[1771871517718,1.51009814,78.645,78.62,1.46958108]
[1771871518216,1.51009814,78.645,78.612,1.46958108]
[1771871518529,1.51009814,78.639,78.612,1.46958108]
[1771871519116,1.51009814,78.639,78.605,1.46958108]
[1771871519621,1.51009814,78.637,78.605,1.46958108]
[1771871520117,1.51009814,78.637,78.611,1.46958108]
[1771871520315,12.71649838,78.638,78.611,1.46958108]
[1771871521628,12.71649838,78.638,78.577,3.69383402]
[1771871521629,1.51009814,78.672,78.633,1.46958108]
[1771871521919,1.51009814,78.676,78.66,5.47799967]
[1771871522304,0.1,78.68,78.661,1.46958108]
[1771871522500,0.1,78.68,78.67,6.94758075]
[1771871522732,0.1,78.68,78.66,5.47799967]
[1771871522733,1.61009814,78.68,78.66,5.47799967]
[1771871522915,0.1,78.69,78.662,1.46958108]
[1771871523126,0.1,78.69,78.64,5.47799967]
[1771871523127,7.08809781,78.71,78.681,1.46958108]
[1771871523310,14.56144583,78.707,78.681,1.46958108]
[1771871523508,12.70551165,78.706,78.681,1.46958108]
[1771871523818,14.21560979,78.706,78.681,1.46958108]
[1771871524024,1.51009814,78.705,78.681,1.46958108]
[1771871524212,1.51009814,78.705,78.682,1.46958108]
[1771871524923,1.51009814,78.705,78.672,1.46958108]
[1771871526021,1.51009814,78.703,78.674,1.46958108]
[1771871526317,1.51009814,78.699,78.67,14.64075206]
[1771871526516,1.51009814,78.699,78.666,1.46958108]
[1771871527614,1.51009814,78.699,78.666,14.18148712]
[1771871527820,14.21690136,78.698,78.671,1.46958108]
[1771871528050,1.51009814,78.697,78.671,1.46958108]
[1771871529523,12.70595369,78.704,78.681,1.46958108]
[1771871530025,13.05134769,78.707,78.691,1.46958108]
[1771871531824,3.37824082,78.707,78.7,14.64075206]
[1771871532021,2.30043615,78.707,78.7,14.64075206]
[1771871533121,2.30043615,78.707,78.693,1.07778652]
[1771871533506,2.30043615,78.707,78.69,14.64075206]
[1771871533706,2.30043615,78.707,78.691,12.70793356]
[1771871534213,2.30043615,78.707,78.7,14.64075206]
[1771871534736,0.1,78.72,78.7,14.64075206]
[1771871535024,0.1,78.73,78.71,14.64075206]
[1771871535233,0.1,78.73,78.72,14.64075206]
[1771871535557,14.64075206,78.76,78.72,14.64075206]
[1771871535558,6.62811765,78.797,78.723,3.69383402]
[1771871535730,14.88289396,78.9,78.791,44.42131715]
[1771871535731,14.64075206,78.84,78.791,44.42131715]
[1771871536026,50.7246832,78.858,78.78,14.64075206]
[1771871536027,1.55565787,78.819,78.78,14.64075206]
[1771871536807,1.55565787,78.819,78.79,14.64075206]
[1771871537409,1.55565787,78.819,78.8,14.64075206]
[1771871537812,44.39427186,78.839,78.81,14.64075206]
[1771871537813,1.55565787,78.828,78.81,14.64075206]
[1771871538013,1.55565787,78.828,78.8,14.64075206]
[1771871538213,1.55565787,78.826,78.8,14.64075206]
[1771871538839,1.55565787,78.819,78.79,14.64075206]
[1771871540830,1.55565787,78.817,78.79,14.64075206]
[1771871542321,1.55565787,78.817,78.774,12.69447358]
[1771871542521,1.55565787,78.809,78.77,14.64075206]
[1771871542722,1.55565787,78.807,78.77,27.33587701]
[1771871542926,1.55565787,78.807,78.78,14.64075206]
[1771871543124,1.55565787,78.822,78.79,14.64075206]
[1771871543644,1.55565787,78.809,78.78,14.64075206]
[1771871545146,12.68906709,78.808,78.78,14.64075206]
[1771871545321,1.55565787,78.807,78.78,14.64075206]
[1771871546939,1.55565787,78.807,78.739,56.16130112]
[1771871546940,1.55565787,78.82,78.8,14.64075206]
[1771871547938,1.55565787,78.819,78.79,14.64075206]
[1771871550452,1.55565787,78.817,78.791,12.6918049]
[1771871550625,1.55565787,78.817,78.79,14.64075206]
[1771871551950,1.55565787,78.815,78.79,14.64075206]
[1771871554041,44.40722695,78.816,78.757,3.69383402]
[1771871554042,1.55565787,78.813,78.78,14.64075206]
[1771871554242,1.55565787,78.809,78.78,14.64075206]
[1771871555442,0.28432314,78.812,78.758,44.4399299]
[1771871555443,1.55565787,78.799,78.758,44.4399299]
[1771871555646,1.55565787,78.799,78.77,14.64075206]
[1771871557229,1.55565787,78.799,78.77,5.45288502]
[1771871557549,1.55565787,78.797,78.77,5.45288502]
[1771871558327,1.55565787,78.797,78.771,0.02012307]
[1771871559047,1.55565787,78.797,78.77,5.45288502]
[1771871559439,1.55565787,78.797,78.771,12.69502735]
[1771871560556,1.55565787,78.795,78.77,5.45288502]
[1771871560939,1.56631615,78.816,78.766,44.43536115]
[1771871561144,1.56631615,78.799,78.77,5.45288502]
[1771871561454,1.56631615,78.788,78.75,5.45288502]
[1771871561657,1.56631615,78.779,78.74,5.45288502]
[1771871561838,1.56631615,78.779,78.75,5.45288502]
[1771871562155,1.56631615,78.787,78.76,5.45288502]
[1771871563940,1.56631615,78.802,78.78,5.45288502]
[1771871565263,1.56631615,78.802,78.78,14.60507432]
[1771871565583,1.56631615,78.821,78.79,14.60507432]
[1771871565776,50.71036407,78.88,78.81,14.60507432]
[1771871565777,1.56631615,78.828,78.81,14.60507432]
[1771871566065,1.56631615,78.838,78.81,14.60507432]
[1771871566274,1.56631615,78.838,78.803,12.68974746]
[1771871566437,1.56631615,78.829,78.803,12.68974746]
[1771871567058,1.56631615,78.809,78.747,9.33901904]
[1771871567260,1.56631615,78.809,78.78,14.60507432]
[1771871568057,1.56631615,78.809,78.737,63.50254645]
[1771871568058,1.56631615,78.799,78.771,12.69493485]
[1771871568442,1.56631615,78.799,78.761,12.69663919]
[1771871570841,12.69067742,78.798,78.761,12.69663919]
[1771871571060,1.56631615,78.797,78.761,44.43823718]
[1771871571272,1.56631615,78.797,78.77,14.60908471]
[1771871575069,1.56631615,78.795,78.77,14.60908471]
[1771871575245,0.28432314,78.794,78.756,12.69744443]
[1771871575448,1.56631615,78.789,78.76,14.60908471]
[1771871576063,1.56631615,78.789,78.756,12.69744443]
[1771871576367,1.56631615,78.789,78.76,14.60908471]
[1771871577253,1.56631615,78.789,78.756,12.69744443]
[1771871577254,1.56631615,78.797,78.77,14.60908471]
[1771871577572,3.69383402,78.827,78.761,12.69663919]
[1771871577573,1.56631615,78.839,78.79,14.60908471]
[1771871577776,1.56631615,78.839,78.8,14.60908471]
[1771871577964,1.56631615,78.829,78.8,14.60908471]
[1771871579171,1.56631615,78.837,78.81,14.60908471]
[1771871579357,14.25084315,78.837,78.811,12.68858408]
[1771871579859,1.56631615,78.836,78.811,12.68858408]
[1771871580076,50.72022722,78.864,78.811,12.68858408]
[1771871580077,0.1,78.89,78.834,0.28432314]
[1771871580373,1e-08,78.903,78.88,14.60908471]
[1771871580960,1e-08,78.903,78.89,14.60908471]
[1771871581381,50.66205088,78.955,78.89,14.60908471]
[1771871581382,50.64583641,78.98,78.891,1.56456168]
[1771871581674,14.60908471,78.96,78.92,14.60908471]
[1771871581879,14.60908471,78.96,78.89,14.60908471]
[1771871581880,14.60908471,78.93,78.89,14.60908471]
[1771871582063,14.60908471,78.92,78.89,14.60908471]
[1771871582264,1.52164086,78.909,78.88,14.60908471]
[1771871582482,1.52164086,78.909,78.872,12.67877066]
[1771871582663,1.52164086,78.909,78.871,1.56456168]
[1771871582863,1.52164086,78.899,78.86,27.28975013]
[1771871583086,1.52164086,78.889,78.85,14.60908471]
[1771871583369,12.67780623,78.878,78.85,14.60908471]
[1771871583577,1.52164086,78.877,78.85,14.60908471]
[1771871583757,1.52164086,78.877,78.84,27.29295851]
[1771871583954,1.52164086,78.869,78.836,12.68453749]
[1771871584376,1.52164086,78.869,78.834,1.56456168]
[1771871585178,1.52164086,78.869,78.83,14.60908471]
[1771871585375,1.52164086,78.867,78.83,14.60908471]
[1771871585681,1.52164086,78.859,78.825,1.43635168]
[1771871586571,0.49387938,78.859,78.82,14.60908471]
[1771871587279,14.60908471,78.85,78.81,14.60908471]
[1771871587476,44.39427186,78.839,78.809,1.56456168]
[1771871587779,14.60908471,78.84,78.81,14.60908471]
[1771871587982,50.7120724,78.877,78.801,44.41567999]
[1771871587983,12.68118239,78.857,78.83,14.60908471]
[1771871588386,0.28432314,78.856,78.801,12.69019428]
[1771871588700,1.52164086,78.839,78.8,14.60908471]
[1771871588866,1.52164086,78.849,78.811,1.56456168]
[1771871589187,14.60908471,78.84,78.811,1.56456168]
[1771871589382,16.13072557,78.84,78.811,1.56456168]
[1771871590292,14.20571853,78.839,78.811,1.56456168]
[1771871591285,14.20571853,78.839,78.812,12.68842308]
[1771871593389,1.52164086,78.849,78.813,1.56456168]
[1771871594174,1.52164086,78.849,78.812,12.68842308]
[1771871594175,1.52164086,78.857,78.831,1.56456168]
[1771871594795,1.52164086,78.855,78.831,1.56456168]
[1771871595292,14.60908471,78.85,78.822,12.68665899]
[1771871595613,1.52164086,78.849,78.814,12.68808772]
[1771871596298,12.6813432,78.856,78.804,1.56456168]
[1771871596299,1.52164086,78.839,78.804,1.56456168]
[1771871596492,1.52164086,78.839,78.805,1.56456168]
[1771871596794,14.20587942,78.838,78.81,14.60908471]
[1771871596997,1.52164086,78.837,78.794,1.56456168]
[1771871597171,1.52164086,78.837,78.801,1.56456168]
[1771871597974,1.53538134,78.819,78.79,14.60908471]
[1771871598174,1.53538134,78.819,78.781,1.5094837]
[1771871598983,1.53538134,78.817,78.781,1.5094837]